[Event "2nd FIDE WCC Rapid G12"]
[Site "Minsk"]
[Date "2018.06.22"]
[Round "3"]
[White "Dallemura, Anna"]
[Black "Lomakina, Anzhelika"]
[Result "1-0"]
[ECO "C67"]
[WhiteElo "1350"]
[BlackElo "1627"]
[Annotator "NA RC"]
[PlyCount "127"]
[EventDate "2018.06.22"]
[EventType "rapid"]
[EventCountry "BLR"]
[SourceTitle "playchess.com"]
[Source "ChessBase"]
[SourceQuality "1"]
[TimeControl "600+5"]

1. e4 {[%emt 0:00:00]} e5 {[%emt 0:00:02]} 2. Nf3 {[%emt 0:00:00]} Nc6 {[%emt 0:00:02]} 3. Bb5 {[%emt 0:00:00]} Nf6 {[%emt 0:00:02]} 4. O-O {[%emt 0:00:02]} Nxe4 {[%emt 0:00:03]} 5. Re1 {[%emt 0:00:04]} Nd6 {[%emt 0:00:03]} 6. Bxc6 dxc6 {[%emt 0:00:09]} 7. Nxe5 {[%emt 0:00:33]} Be7 {[%emt 0:00:10]} 8. d4 {[%emt 0:00:35]} O-O {[%emt 0:00:03]} 9. Nc3 {[%emt 0:00:12]} Nf5 {[%emt 0:00:36]} 10. Be3 {[%emt 0:00:26]} Be6 {[%emt 0:00:17]} 11. h3 {[%emt 0:00:26]} Bg5 {[%emt 0:00:27]} 12. Nf3 {[%emt 0:00:36]} Bf6 {[%emt 0:02:08]} 13. Qd2 {[%emt 0:00:19]} Bd5 {[%emt 0:01:55]} 14. Nxd5 {[%emt 0:01:51]} cxd5 {[%emt 0:00:12]} 15. Bf4 {[%emt 0:00:45]} Qd7 {[%emt 0:00:24]} 16. Rad1 {[%emt 0:00:51]} Rfe8 {[%emt 0:00:05]} 17. Be5 {[%emt 0:00:40]} Qc6 {[%emt 0:02:11]} 18. c3 {[%emt 0:00:49]} Bxe5 {[%emt 0:00:47]} 19. dxe5 {[%emt 0:00:24]} Rad8 {[%emt 0:00:29]} 20. Nd4 {[%emt 0:00:46]} Qg6 {[%emt 0:00:43]} 21. Qd3 {[%emt 0:01:41]} Nxd4 {[%emt 0:00:26]} 22. Qxg6 {[%emt 0:00:05]} Nf3+ {[%emt 0:00:29]} 23. gxf3 {[%emt 0:00:17]} hxg6 {[%emt 0:00:02]} 24. f4 {[%emt 0:00:05]} Re6 {[%emt 0:00:04]} 25. Kf1 {[%emt 0:00:15]} Ra6 {[%emt 0:00:08]} 26. a3 {[%emt 0:00:03]} Rb6 {[%emt 0:00:00]} 27. Rd2 {[%emt 0:00:02]} c6 {[%emt 0:00:12]} 28. Red1 {[%emt 0:00:04]} Re8 {[%emt 0:00:02]} 29. Re1 {[%emt 0:00:12]} Rb5 {[%emt 0:00:10]} 30. Ree2 {[%emt 0:00:04]} b6 {[%emt 0:00:05]} 31. Rd4 {[%emt 0:00:04]} Rd8 {[%emt 0:00:06]} 32. Red2 {[%emt 0:00:10]} Kf8 {[%emt 0:00:02]} 33. c4 {[%emt 0:00:06]} Ra5 {[%emt 0:00:04]} 34. cxd5 {[%emt 0:00:05]} Raxd5 {[%emt 0:00:01]} 35. Rxd5 {[%emt 0:00:04]} Rxd5 {[%emt 0:00:05]} 36. Rxd5 {[%emt 0:00:03]} cxd5 {[%emt 0:00:00]} 37. Ke2 {[%emt 0:00:01]} Ke7 {[%emt 0:00:01]} 38. Kd3 {[%emt 0:00:00]} Ke6 {[%emt 0:00:00]} 39. Kd4 {[%emt 0:00:03]} a6 {[%emt 0:00:04]} 40. h4 {[%emt 0:00:05]} Kf5 {[%emt 0:00:05]} 41. Kxd5 {[%emt 0:00:07]} Kxf4 {[%emt 0:00:02]} 42. Kc6 {[%emt 0:00:02]} b5 {[%emt 0:00:16]} 43. Kb6 {[%emt 0:00:01]} Kxe5 {[%emt 0:00:03]} 44. Kxa6 {[%emt 0:00:01]} f5 {[%emt 0:00:07]} 45. Kxb5 {[%emt 0:00:02]} f4 {[%emt 0:00:01]} 46. a4 {[%emt 0:00:01]} Ke4 {[%emt 0:00:02]} 47. a5 {[%emt 0:00:01]} Kf3 {[%emt 0:00:02]} 48. a6 {[%emt 0:00:01]} Kxf2 {[%emt 0:00:01]} 49. a7 {[%emt 0:00:01]} f3 {[%emt 0:00:01]} 50. a8=Q {[%emt 0:00:03]} Kg3 {[%emt 0:00:11]} 51. Qc6 {[%emt 0:00:17]} f2 {[%emt 0:00:18]} 52. Qh1 {[%emt 0:00:02]} f1=Q+ {[%emt 0:00:11]} 53. Qxf1 {[%emt 0:00:02]} Kxh4 {[%emt 0:00:02]} 54. Qg2 {[%emt 0:00:01]} g5 {[%emt 0:00:01]} 55. Kc4 {[%emt 0:00:02]} g4 {[%emt 0:00:02]} 56. Kd4 {[%emt 0:00:01]} g3 {[%emt 0:00:01]} 57. Ke4 {[%emt 0:00:02]} g5 {[%emt 0:00:01]} 58. Kf3 {[%emt 0:00:09]} g4+ {[%emt 0:00:00]} 59. Kf4 {[%emt 0:00:03]} Kh5 {[%emt 0:00:06]} 60. Qxg3 {[%emt 0:00:04]} Kh6 {[%emt 0:00:01]} 61. Kf5 {[%emt 0:00:03]} Kh7 {[%emt 0:00:04]} 62. Qxg4 {[%emt 0:00:02]} Kh8 {[%emt 0:00:01]} 63. Kf6 {[%emt 0:00:01]} Kh7 {[%emt 0:00:01]} 64. Qg7# 1-0

[Event "2nd FIDE WCC Rapid G12"]
[Site "Minsk"]
[Date "2018.06.22"]
[Round "4"]
[White "Gaal, Zsoka"]
[Black "Khabibullaeva, Mokhinur"]
[Result "0-1"]
[ECO "A05"]
[WhiteElo "2060"]
[BlackElo "1462"]
[Annotator "NA RC"]
[PlyCount "102"]
[EventDate "2018.06.22"]
[EventType "rapid"]
[EventCountry "BLR"]
[SourceTitle "playchess.com"]
[Source "ChessBase"]
[SourceQuality "1"]
[TimeControl "600+5"]

1. Nf3 {[%emt 0:00:00]} Nf6 {[%emt 0:00:01]} 2. g3 {[%emt 0:00:00]} g6 {[%emt 0:00:01]} 3. Bg2 {[%emt 0:00:00]} Bg7 {[%emt 0:00:00]} 4. d4 {[%emt 0:00:01]} d6 {[%emt 0:00:02]} 5. O-O {[%emt 0:00:03]} O-O {[%emt 0:00:02]} 6. b3 {[%emt 0:00:01]} Nc6 {[%emt 0:00:09]} 7. Bb2 {[%emt 0:00:07]} a5 {[%emt 0:00:11]} 8. a3 {[%emt 0:01:14]} e6 {[%emt 0:00:30]} 9. c4 {[%emt 0:00:14]} Bd7 {[%emt 0:00:13]} 10. Nc3 {[%emt 0:00:08]} Rb8 {[%emt 0:00:08]} 11. Rc1 {[%emt 0:00:24]} Na7 {[%emt 0:00:20]} 12. b4 {[%emt 0:01:26]} b5 {[%emt 0:01:58]} 13. c5 {[%emt 0:01:35]} axb4 {[%emt 0:00:16]} 14. axb4 {[%emt 0:00:02]} Nc6 {[%emt 0:00:03]} 15. Qb3 {[%emt 0:01:53]} Qe7 {[%emt 0:01:29]} 16. Rfd1 {[%emt 0:01:10]} Rfd8 {[%emt 0:00:37]} 17. e4 {[%emt 0:00:12]} Be8 {[%emt 0:00:48]} 18. d5 {[%emt 0:00:37]} exd5 {[%emt 0:00:12]} 19. exd5 {[%emt 0:00:02]} Ne5 {[%emt 0:00:15]} 20. Nxe5 {[%emt 0:00:24]} dxe5 {[%emt 0:00:05]} 21. Re1 {[%emt 0:00:38]} Bd7 {[%emt 0:01:39]} 22. c6 {[%emt 0:01:19]} Bf5 {[%emt 0:00:08]} 23. f4 {[%emt 0:00:16]} e4 {[%emt 0:00:04]} 24. Ne2 {[%emt 0:00:05]} Nxd5 {[%emt 0:00:08]} 25. Bxg7 Kxg7 {[%emt 0:00:01]} 26. Nd4 {[%emt 0:00:09]} Qxb4 {[%emt 0:00:17]} 27. Qxb4 {[%emt 0:00:07]} Nxb4 {[%emt 0:00:01]} 28. Nb3 {[%emt 0:00:04]} Nd3 {[%emt 0:00:07]} 29. Rcd1 {[%emt 0:00:05]} Nxe1 {[%emt 0:00:01]} 30. Rxe1 {[%emt 0:00:00]} Re8 {[%emt 0:00:04]} 31. Nc5 {[%emt 0:00:02]} e3 {[%emt 0:00:09]} 32. Na6 {[%emt 0:00:03]} Rbc8 {[%emt 0:00:17]} 33. h3 {[%emt 0:00:08]} Re7 {[%emt 0:00:06]} 34. g4 {[%emt 0:00:02]} Bc2 {[%emt 0:00:08]} 35. Nb4 {[%emt 0:00:05]} Bb3 {[%emt 0:00:06]} 36. Bf1 {[%emt 0:00:11]} Bc4 {[%emt 0:00:11]} 37. Bxc4 {[%emt 0:00:07]} bxc4 {[%emt 0:00:00]} 38. Nd5 {[%emt 0:00:01]} Re4 {[%emt 0:00:07]} 39. Kg2 {[%emt 0:00:06]} Rd8 {[%emt 0:00:27]} 40. Kf3 {[%emt 0:00:05]} Re6 {[%emt 0:00:10]} 41. Nxc7 {[%emt 0:00:04]} Rxc6 {[%emt 0:00:02]} 42. Nb5 {[%emt 0:00:02]} c3 {[%emt 0:00:04]} 43. Kxe3 {[%emt 0:00:06]} Re8+ {[%emt 0:00:05]} 44. Kf2 {[%emt 0:00:02]} Rxe1 45. Kxe1 {[%emt 0:00:01]} c2 {[%emt 0:00:03]} 46. Nd4 {[%emt 0:00:07]} c1=Q+ {[%emt 0:00:02]} 47. Ke2 {[%emt 0:00:11]} Rc2+ {[%emt 0:00:05]} 48. Kd3 {[%emt 0:00:04]} Qd2+ {[%emt 0:00:02]} 49. Ke4 {[%emt 0:00:01]} Rc4 {[%emt 0:00:01]} 50. Kf3 {[%emt 0:00:04]} Rxd4 {[%emt 0:00:02]} 51. f5 {[%emt 0:00:03]} Qf4+ {[%emt 0:00:01]} 0-1

[Event "2nd FIDE WCC Rapid G12"]
[Site "Minsk"]
[Date "2018.06.22"]
[Round "4"]
[White "Alekseenko, Mariya"]
[Black "Kastanieda, Alla"]
[Result "1-0"]
[ECO "A05"]
[WhiteElo "1763"]
[BlackElo "1379"]
[Annotator "NA"]
[PlyCount "93"]
[EventDate "2018.06.22"]
[EventType "rapid"]
[EventCountry "BLR"]
[SourceTitle "playchess.com"]
[Source "ChessBase"]
[SourceQuality "1"]
[TimeControl "600+5"]

1. Nf3 {[%emt 0:00:00]} Nf6 {[%emt 0:00:07]} 2. g3 {[%emt 0:00:00]} d5 {[%emt 0:00:02]} 3. Bg2 {[%emt 0:00:00]} c6 {[%emt 0:00:02]} 4. O-O {[%emt 0:00:00]} Nbd7 {[%emt 0:00:07]} 5. d3 {[%emt 0:00:01]} e5 {[%emt 0:00:20]} 6. Nbd2 {[%emt 0:00:07]} Be7 {[%emt 0:00:09]} 7. b3 {[%emt 0:00:01]} O-O {[%emt 0:00:07]} 8. Bb2 {[%emt 0:00:01]} Qc7 {[%emt 0:00:01]} 9. c4 {[%emt 0:00:14]} Qb8 {[%emt 0:00:15]} 10. Qc2 {[%emt 0:00:08]} Re8 {[%emt 0:00:33]} 11. e4 {[%emt 0:00:11]} d4 {[%emt 0:00:04]} 12. a3 {[%emt 0:00:03]} c5 {[%emt 0:00:17]} 13. h3 {[%emt 0:00:01]} Nf8 {[%emt 0:00:24]} 14. Kh2 {[%emt 0:00:06]} Bd7 {[%emt 0:00:18]} 15. Rae1 {[%emt 0:00:03]} Ng6 {[%emt 0:00:10]} 16. Bc1 {[%emt 0:00:28]} Bf8 {[%emt 0:00:36]} 17. Ng1 {[%emt 0:00:07]} h6 {[%emt 0:00:30]} 18. Ne2 {[%emt 0:00:02]} Bd6 {[%emt 0:00:04]} 19. Nf3 {[%emt 0:00:19]} a6 {[%emt 0:00:52]} 20. Kh1 {[%emt 0:00:33]} Qc8 {[%emt 0:00:15]} 21. Nfg1 {[%emt 0:00:03]} a5 {[%emt 0:00:38]} 22. a4 {[%emt 0:00:06]} b6 {[%emt 0:00:01]} 23. f4 {[%emt 0:00:02]} Nh7 {[%emt 0:00:20]} 24. f5 {[%emt 0:00:06]} Nh8 {[%emt 0:00:25]} 25. g4 {[%emt 0:00:07]} Be7 {[%emt 0:00:06]} 26. Nf3 {[%emt 0:00:04]} Qd8 {[%emt 0:00:04]} 27. Nxe5 {[%emt 0:00:13]} Bh4 {[%emt 0:00:04]} 28. Nxd7 {[%emt 0:00:26]} Bxe1 {[%emt 0:00:04]} 29. Rxe1 {[%emt 0:02:34]} Qxd7 {[%emt 0:00:03]} 30. Nf4 {[%emt 0:00:06]} Qd6 {[%emt 0:00:05]} 31. e5 {[%emt 0:00:22]} Qe7 {[%emt 0:00:25]} 32. Bxa8 {[%emt 0:00:06]} Rxa8 {[%emt 0:00:01]} 33. Nd5 {[%emt 0:00:01]} Qh4 {[%emt 0:00:14]} 34. Rg1 {[%emt 0:00:51]} Qxh3+ {[%emt 0:00:25]} 35. Qh2 {[%emt 0:00:00]} Qxd3 {[%emt 0:00:20]} 36. e6 {[%emt 0:00:24]} fxe6 {[%emt 0:00:10]} 37. fxe6 {[%emt 0:00:07]} Qxb3 {[%emt 0:01:03]} 38. Rf1 {[%emt 0:00:24]} Re8 {[%emt 0:00:20]} 39. Nc7 {[%emt 0:00:19]} Re7 {[%emt 0:00:40]} 40. Bf4 {[%emt 0:00:33]} Qd3 {[%emt 0:01:47]} 41. Qg2 {[%emt 0:00:03]} Nf6 {[%emt 0:00:45]} 42. Bd6 {[%emt 0:00:09]} Rxe6 {[%emt 0:00:01]} 43. Nxe6 {[%emt 0:00:07]} Qxc4 {[%emt 0:00:06]} 44. Nxg7 {[%emt 0:00:26]} Kxg7 {[%emt 0:00:06]} 45. Be5 {[%emt 0:00:01]} h5 {[%emt 0:00:09]} 46. Rxf6 {[%emt 0:00:08]} Qc1+ {[%emt 0:00:02]} 47. Rf1+ {[%emt 0:00:03]} 1-0

[Event "2nd FIDE WCC Rapid G12"]
[Site "Minsk"]
[Date "2018.06.22"]
[Round "4"]
[White "Cherepanova, Evita"]
[Black "Yaroshenko, Sofiya"]
[Result "1-0"]
[ECO "C05"]
[WhiteElo "1604"]
[BlackElo "1540"]
[Annotator "NA"]
[PlyCount "89"]
[EventDate "2018.06.22"]
[EventType "rapid"]
[EventCountry "BLR"]
[SourceTitle "playchess.com"]
[Source "ChessBase"]
[SourceQuality "1"]
[TimeControl "600+5"]

1. e4 {[%emt 0:00:00]} e6 {[%emt 0:00:01]} 2. d4 {[%emt 0:00:00]} d5 {[%emt 0:00:00]} 3. Nd2 {[%emt 0:00:00]} Nf6 {[%emt 0:00:02]} 4. e5 {[%emt 0:00:00]} Nfd7 {[%emt 0:00:01]} 5. Bd3 {[%emt 0:00:01]} Be7 {[%emt 0:00:03]} 6. Ne2 {[%emt 0:00:08]} O-O {[%emt 0:00:12]} 7. O-O {[%emt 0:00:02]} c5 {[%emt 0:00:01]} 8. c3 {[%emt 0:00:01]} Nc6 {[%emt 0:00:01]} 9. Nf3 {[%emt 0:00:02]} h6 {[%emt 0:00:02]} 10. h3 {[%emt 0:00:07]} a6 {[%emt 0:00:06]} 11. a4 {[%emt 0:00:06]} b6 {[%emt 0:00:08]} 12. Ne1 {[%emt 0:01:33]} Bb7 {[%emt 0:00:07]} 13. f4 {[%emt 0:00:06]} cxd4 {[%emt 0:00:13]} 14. cxd4 {[%emt 0:00:02]} Nb4 {[%emt 0:00:08]} 15. Bb1 {[%emt 0:01:03]} a5 {[%emt 0:00:15]} 16. f5 {[%emt 0:00:13]} exf5 {[%emt 0:00:05]} 17. Bxf5 {[%emt 0:00:19]} Ba6 {[%emt 0:00:15]} 18. Rf3 {[%emt 0:03:04]} Nb8 {[%emt 0:00:30]} 19. Nf4 {[%emt 0:00:31]} N8c6 {[%emt 0:00:07]} 20. e6 {[%emt 0:00:33]} Qd6 {[%emt 0:01:07]} 21. exf7+ {[%emt 0:00:10]} Kh8 {[%emt 0:00:04]} 22. Ng6+ {[%emt 0:00:03]} Kh7 {[%emt 0:00:24]} 23. Nxf8+ {[%emt 0:00:02]} Kh8 {[%emt 0:00:02]} 24. Ng6+ {[%emt 0:00:02]} Kh7 {[%emt 0:00:03]} 25. Nxe7+ {[%emt 0:00:03]} g6 {[%emt 0:00:12]} 26. Nxg6 {[%emt 0:00:14]} Kg7 {[%emt 0:00:08]} 27. f8=Q+ {[%emt 0:00:04]} Rxf8 {[%emt 0:00:02]} 28. Nxf8 {[%emt 0:00:02]} Qxf8 {[%emt 0:00:02]} 29. Rg3+ {[%emt 0:00:05]} Kh8 {[%emt 0:00:06]} 30. Rf3 {[%emt 0:01:30]} Qg7 {[%emt 0:00:28]} 31. Rf4 {[%emt 0:00:38]} Ne7 {[%emt 0:02:56]} 32. Qh5 {[%emt 0:00:14]} Ng8 {[%emt 0:00:10]} 33. Rg4 {[%emt 0:00:26]} Qf6 {[%emt 0:00:19]} 34. Nf3 {[%emt 0:00:27]} Be2 {[%emt 0:00:16]} 35. Qg6 {[%emt 0:00:32]} Qxg6 {[%emt 0:00:05]} 36. Rxg6 Bxf3 {[%emt 0:00:09]} 37. gxf3 {[%emt 0:00:03]} Ne7 {[%emt 0:00:09]} 38. Rxh6+ {[%emt 0:00:02]} Kg7 {[%emt 0:00:01]} 39. Bd7 {[%emt 0:00:15]} Nd3 {[%emt 0:00:14]} 40. Rxb6 {[%emt 0:00:06]} Ng6 {[%emt 0:00:58]} 41. Bf5 {[%emt 0:00:07]} Ne7 {[%emt 0:00:05]} 42. Bh6+ {[%emt 0:00:03]} Kf7 {[%emt 0:00:06]} 43. Be6+ {[%emt 0:00:04]} Kg6 {[%emt 0:00:04]} 44. Bxd5+ {[%emt 0:00:04]} Kf5 {[%emt 0:00:03]} 45. Be4# {[%emt 0:00:02]} 1-0

[Event "2nd FIDE WCC Rapid G12"]
[Site "Minsk"]
[Date "2018.06.22"]
[Round "4"]
[White "Zavivaeva, Emilia"]
[Black "Tarasenka, Aliaksandra"]
[Result "1/2-1/2"]
[ECO "B13"]
[WhiteElo "1556"]
[BlackElo "1747"]
[Annotator "NA RC"]
[PlyCount "150"]
[EventDate "2018.06.22"]
[EventType "rapid"]
[EventCountry "BLR"]
[SourceTitle "playchess.com"]
[Source "ChessBase"]
[SourceQuality "1"]
[TimeControl "600+5"]

1. e4 {[%emt 0:00:04]} c6 {[%emt 0:00:01]} 2. d4 {[%emt 0:00:02]} d5 {[%emt 0:00:02]} 3. exd5 {[%emt 0:00:04]} cxd5 {[%emt 0:00:01]} 4. Bd3 {[%emt 0:00:03]} Nc6 {[%emt 0:00:01]} 5. c3 {[%emt 0:00:01]} g6 {[%emt 0:00:05]} 6. Bf4 {[%emt 0:00:02]} Bg7 {[%emt 0:00:04]} 7. Nd2 {[%emt 0:00:04]} Nh6 {[%emt 0:00:11]} 8. Ngf3 {[%emt 0:00:10]} f6 {[%emt 0:00:06]} 9. Qc2 {[%emt 0:00:12]} Nf7 {[%emt 0:00:25]} 10. O-O {[%emt 0:00:18]} e5 {[%emt 0:00:58]} 11. Rfe1 {[%emt 0:04:26]} O-O {[%emt 0:00:25]} 12. dxe5 {[%emt 0:00:08]} fxe5 {[%emt 0:00:04]} 13. Bg3 {[%emt 0:01:26]} e4 {[%emt 0:00:29]} 14. Nxe4 {[%emt 0:01:42]} dxe4 {[%emt 0:00:04]} 15. Bxe4 {[%emt 0:00:02]} Qb6 {[%emt 0:02:22]} 16. Bd5 {[%emt 0:01:30]} Bf5 {[%emt 0:00:35]} 17. Qa4 {[%emt 0:00:50]} Kh8 {[%emt 0:00:44]} 18. Bb3 {[%emt 0:00:02]} Rad8 {[%emt 0:01:24]} 19. Qh4 {[%emt 0:00:02]} h5 {[%emt 0:02:22]} 20. Qa4 {[%emt 0:00:09]} Nh6 {[%emt 0:00:27]} 21. Bh4 {[%emt 0:00:02]} Rde8 {[%emt 0:00:11]} 22. Bg5 {[%emt 0:00:08]} Ng4 {[%emt 0:00:15]} 23. Rf1 {[%emt 0:00:14]} Re2 {[%emt 0:00:16]} 24. Bh4 {[%emt 0:00:09]} Rxb2 {[%emt 0:00:08]} 25. h3 {[%emt 0:00:04]} Nh6 {[%emt 0:00:13]} 26. Rac1 {[%emt 0:00:07]} Bxh3 {[%emt 0:00:14]} 27. Qa3 {[%emt 0:00:05]} Re2 {[%emt 0:00:04]} 28. Bd1 {[%emt 0:00:03]} Re4 {[%emt 0:00:07]} 29. gxh3 {[%emt 0:00:03]} Qb5 {[%emt 0:00:05]} 30. Bg3 {[%emt 0:00:02]} Qf5 {[%emt 0:00:02]} 31. Nh2 {[%emt 0:00:08]} Qxh3 {[%emt 0:00:04]} 32. Bf3 {[%emt 0:00:01]} Ree8 {[%emt 0:00:06]} 33. Bg2 {[%emt 0:00:03]} Qf5 {[%emt 0:00:04]} 34. Nf3 {[%emt 0:00:04]} Qd3 {[%emt 0:00:07]} 35. Rfd1 {[%emt 0:00:07]} Qc4 {[%emt 0:00:04]} 36. Qb3 {[%emt 0:00:06]} Qxb3 37. axb3 {[%emt 0:00:02]} Re2 {[%emt 0:00:10]} 38. Re1 {[%emt 0:00:08]} Rb2 {[%emt 0:00:04]} 39. b4 {[%emt 0:00:02]} Nf5 {[%emt 0:00:06]} 40. Bh2 {[%emt 0:00:08]} Rb3 {[%emt 0:00:05]} 41. Ne5 {[%emt 0:00:10]} Nxe5 {[%emt 0:00:07]} 42. Bxe5 {[%emt 0:00:01]} b6 {[%emt 0:00:01]} 43. Bxg7+ {[%emt 0:00:03]} Kxg7 {[%emt 0:00:02]} 44. Rc2 {[%emt 0:00:07]} Rc8 {[%emt 0:00:08]} 45. c4 {[%emt 0:00:07]} Rxb4 {[%emt 0:00:01]} 46. Bd5 {[%emt 0:00:05]} b5 {[%emt 0:00:09]} 47. c5 {[%emt 0:00:10]} Rg4+ {[%emt 0:00:02]} 48. Kh2 {[%emt 0:00:05]} a5 {[%emt 0:00:09]} 49. c6 {[%emt 0:00:02]} Nd4 {[%emt 0:00:02]} 50. Rcc1 {[%emt 0:00:08]} b4 {[%emt 0:00:07]} 51. Red1 {[%emt 0:00:06]} Nf5 {[%emt 0:00:07]} 52. c7 {[%emt 0:00:00]} Rh4+ {[%emt 0:00:04]} 53. Kg2 {[%emt 0:00:00]} Nd6 54. Be6 {[%emt 0:00:04]} Rxc7 {[%emt 0:00:13]} 55. Rxc7+ Kf6 56. Rxd6 {[%emt 0:00:06]} Ke5 {[%emt 0:00:01]} 57. Ra6 {[%emt 0:00:02]} a4 {[%emt 0:00:03]} 58. Bh3 {[%emt 0:00:07]} b3 {[%emt 0:00:02]} 59. Rc5+ {[%emt 0:00:05]} Kd4 {[%emt 0:00:02]} 60. Rb5 {[%emt 0:00:05]} Kc3 {[%emt 0:00:02]} 61. Rc5+ {[%emt 0:00:04]} Kb2 {[%emt 0:00:02]} 62. Kg3 {[%emt 0:00:06]} Rd4 {[%emt 0:00:04]} 63. Rca5 {[%emt 0:00:07]} Ka3 {[%emt 0:00:05]} 64. Rb6 {[%emt 0:00:14]} b2 {[%emt 0:00:02]} 65. Rab5 {[%emt 0:00:01]} Rd3+ {[%emt 0:00:02]} 66. Kg2 {[%emt 0:00:05]} Rb3 {[%emt 0:00:01]} 67. Rxb3+ {[%emt 0:00:16]} axb3 {[%emt 0:00:01]} 68. Ra6+ {[%emt 0:00:01]} Kb4 {[%emt 0:00:01]} 69. Rb6+ {[%emt 0:00:03]} Kc3 {[%emt 0:00:06]} 70. Rc6+ {[%emt 0:00:02]} Kd2 {[%emt 0:00:28]} 71. Rd6+ {[%emt 0:00:01]} Kc1 {[%emt 0:00:05]} 72. Rc6+ {[%emt 0:00:02]} Kd2 {[%emt 0:00:04]} 73. Rd6+ {[%emt 0:00:01]} Kc1 {[%emt 0:00:00]} 74. Rc6+ {[%emt 0:00:04]} Kd2 {[%emt 0:00:08]} 75. Rd6+ {[%emt 0:00:10]} Kc1 {[%emt 0:00:01]} 1/2-1/2

[Event "2nd FIDE WCC Rapid G12"]
[Site "Minsk"]
[Date "2018.06.22"]
[Round "4"]
[White "Nguyen, Hong Nhung"]
[Black "Khatniuk, Anastasiia"]
[Result "1-0"]
[ECO "C45"]
[WhiteElo "1518"]
[BlackElo "1749"]
[Annotator "NA RC"]
[PlyCount "83"]
[EventDate "2018.06.22"]
[EventType "rapid"]
[EventCountry "BLR"]
[SourceTitle "playchess.com"]
[Source "ChessBase"]
[SourceQuality "1"]
[TimeControl "600+5"]

1. e4 {[%emt 0:00:00]} e5 {[%emt 0:00:01]} 2. Nf3 {[%emt 0:00:00]} Nc6 {[%emt 0:00:01]} 3. d4 {[%emt 0:00:01]} exd4 {[%emt 0:00:02]} 4. Nxd4 {[%emt 0:00:02]} Bc5 {[%emt 0:00:01]} 5. Be3 {[%emt 0:00:02]} Qf6 {[%emt 0:00:01]} 6. c3 {[%emt 0:00:02]} Nge7 {[%emt 0:00:02]} 7. Bc4 {[%emt 0:00:02]} d6 {[%emt 0:00:16]} 8. O-O {[%emt 0:00:03]} Ne5 {[%emt 0:00:05]} 9. Be2 {[%emt 0:00:02]} O-O {[%emt 0:00:02]} 10. Kh1 {[%emt 0:00:05]} Bb6 {[%emt 0:00:09]} 11. f4 {[%emt 0:00:03]} N5c6 {[%emt 0:00:02]} 12. g4 {[%emt 0:00:47]} Ng6 {[%emt 0:00:18]} 13. g5 {[%emt 0:00:54]} Qe7 {[%emt 0:00:17]} 14. Nd2 {[%emt 0:00:21]} Re8 {[%emt 0:00:33]} 15. f5 {[%emt 0:00:06]} Nge5 {[%emt 0:00:07]} 16. f6 {[%emt 0:00:11]} Qf8 {[%emt 0:00:24]} 17. fxg7 {[%emt 0:00:21]} Qxg7 {[%emt 0:00:02]} 18. Bh5 {[%emt 0:00:48]} Nd8 {[%emt 0:00:35]} 19. Nc2 {[%emt 0:00:28]} Ne6 {[%emt 0:00:50]} 20. h4 {[%emt 0:01:06]} Bd7 {[%emt 0:00:24]} 21. Bxb6 {[%emt 0:00:26]} axb6 {[%emt 0:00:02]} 22. Ne3 {[%emt 0:00:03]} Nc5 {[%emt 0:00:40]} 23. Nd5 {[%emt 0:01:06]} Kh8 {[%emt 0:00:47]} 24. Nxc7 {[%emt 0:00:05]} Rac8 {[%emt 0:00:13]} 25. Nxe8 {[%emt 0:00:04]} Rxe8 {[%emt 0:00:02]} 26. b4 {[%emt 0:00:37]} Ncd3 {[%emt 0:00:15]} 27. Nf3 {[%emt 0:00:40]} Nxf3 {[%emt 0:00:17]} 28. Bxf3 {[%emt 0:00:17]} Ne5 {[%emt 0:00:08]} 29. Qxd6 {[%emt 0:00:22]} Bb5 {[%emt 0:00:21]} 30. Rf2 {[%emt 0:00:16]} Nxf3 {[%emt 0:00:10]} 31. Rxf3 {[%emt 0:00:02]} Bc6 {[%emt 0:00:07]} 32. Re3 {[%emt 0:00:20]} Bxe4+ {[%emt 0:00:29]} 33. Kg1 {[%emt 0:00:08]} Bc6 {[%emt 0:00:29]} 34. Rxe8+ {[%emt 0:00:02]} Bxe8 {[%emt 0:00:01]} 35. Re1 {[%emt 0:00:04]} Bc6 {[%emt 0:00:03]} 36. Qd8+ {[%emt 0:00:06]} Qg8 {[%emt 0:00:02]} 37. Qxg8+ {[%emt 0:00:05]} Kxg8 {[%emt 0:00:01]} 38. Kf2 {[%emt 0:00:04]} Kg7 {[%emt 0:00:01]} 39. Ke3 {[%emt 0:00:02]} Kg6 {[%emt 0:00:02]} 40. Kf4 {[%emt 0:00:05]} b5 {[%emt 0:00:09]} 41. Rd1 {[%emt 0:00:04]} Kh5 {[%emt 0:00:16]} 42. Rd6 {[%emt 0:00:02]} 1-0